fUSD/lending_fUSD_20241003
["ID","MTS","AMOUNT","RATE_DAILY","PERIOD"]
[339788102,1727987488220,-1971.05,0.00033698,120]
[339788103,1727987488229,-500.0,0.00033698,120]
[339788104,1727987488238,-967.14,0.00033698,120]
[339788105,1727987488248,-500.0,0.00033698,120]
[339788106,1727987488258,-500.0,0.00033698,120]
[339788107,1727987488267,-11039.47,0.00033698,120]
[339788108,1727987488278,-647.95,0.00033698,120]
[339788109,1727987488288,-1835.01,0.00033698,120]
[339788110,1727987488297,-500.0,0.00033698,120]
[339788111,1727987488307,-1066.51,0.00033698,120]
[339788112,1727987488316,-2065.61,0.00033698,120]
[339788113,1727987488325,-500.0,0.00033698,120]
[339788114,1727987488335,-2054.911659,0.00033698,7]
[339788115,1727987488345,-2041.33,0.00033698,120]
[339788116,1727987488354,-500.0,0.00033698,120]
[339788117,1727987488363,-500.0,0.00033698,120]
[339788118,1727987488373,-810.170864,0.00033698,7]
[339788119,1727987488382,-2054.911659,0.00033698,7]
[339788120,1727987488392,-701.71,0.00033698,120]
[339788121,1727987488403,-512.38,0.00033698,120]
[339788122,1727987488412,-500.0,0.00033698,120]
[339788123,1727987488422,-810.170864,0.00033698,7]
[339788124,1727987488431,-527.76,0.00033698,120]
[339788125,1727987488440,-500.0,0.00033698,120]
[339788126,1727987488449,-500.0,0.00033698,120]
[339788127,1727987488459,-527.0,0.00033698,120]
[339788128,1727987488468,-1302.4,0.00033698,120]
[339788129,1727987488477,-379.544111,0.00033698,7]
[339788130,1727987488486,-500.0,0.00033698,120]
[339788131,1727987488496,-1041.18,0.00033698,120]
[339788132,1727987488504,-968.42,0.00033698,120]
[339788133,1727987488514,-379.544111,0.00033698,7]
[339788134,1727987488523,-500.0,0.00033698,120]
[339788135,1727987488532,-500.0,0.00033698,120]
[339788136,1727987488541,-1510.82,0.00033698,120]
[339788137,1727987488551,-2058.43,0.00033698,120]
[339788138,1727987488561,-155.688258,0.00033698,7]
[339788139,1727987488571,-2566.99,0.00033698,120]
[339788140,1727987488580,-1635.85,0.00033698,120]
[339788141,1727987488589,-1123.06,0.00033698,120]
[339788142,1727987488598,-500.0,0.00033698,120]
[339788143,1727987488607,-155.688258,0.00033698,7]
[339788144,1727987488616,-500.52,0.00033698,120]
[339788145,1727987488626,-1766.39,0.00033698,120]
[339788146,1727987488635,-1143.448231,0.00033698,7]
[339788147,1727987488645,-500.0,0.00033698,120]
[339788148,1727987488656,-2301.76,0.00033698,120]
[339788149,1727987488664,-1421.18,0.00033698,120]
[339788150,1727987488673,-1143.448231,0.00033698,7]
[339788151,1727987488682,-500.0,0.00033698,120]
[339788152,1727987488693,-1093.77,0.00033698,120]
[339788153,1727987488702,-500.0,0.00033698,120]
[339788154,1727987488712,-2041.08,0.00033698,120]
[339788155,1727987488722,-500.0,0.00033698,120]
[339788156,1727987488733,-1056.72,0.00033698,120]
[339788157,1727987488743,-500.0,0.00033698,120]
[339788158,1727987488752,-500.0,0.00033698,120]
[339788159,1727987488762,-575.99,0.00033698,120]
[339788160,1727987488771,-500.0,0.00033698,120]
[339788161,1727987488782,-4824.18,0.00033698,120]
[339788162,1727987488791,-2539.88,0.00033698,120]
[339788163,1727987488801,-500.0,0.00033698,120]
[339788164,1727987488810,-153.765901,0.00033698,7]
[339788165,1727987488820,-843.366894,0.00033698,7]
[339788166,1727987488830,-1031.81,0.00033698,120]
[339788167,1727987488842,-153.765901,0.00033698,7]
[339788168,1727987488855,-1058.32,0.00033698,120]
[339788169,1727987488864,-843.366894,0.00033698,7]
[339788170,1727987488875,-500.0,0.00033698,120]
[339788171,1727987488888,-500.0,0.00033698,120]
[339788172,1727987488899,-2770.27,0.00033698,120]
[339788173,1727987488908,-500.0,0.00033698,120]
[339788174,1727987488917,-500.0,0.00033698,120]
[339788175,1727987488929,-2126.28,0.00033698,120]
[339788176,1727987488941,-500.0,0.00033698,120]
[339788177,1727987488950,-3109.58,0.00033698,120]
[339788178,1727987488961,-500.0,0.00033698,120]
[339788179,1727987488970,-1989.39,0.00033698,120]
[339788180,1727987488980,-2838.83,0.00033698,120]
[339788181,1727987488990,-2489.9,0.00033698,120]
[339788182,1727987489001,-500.0,0.00033698,120]
[339788183,1727987489012,-2454.73,0.00033698,120]
[339788184,1727987489022,-1548.63,0.00033698,120]
[339788185,1727987489033,-1539.86,0.00033698,120]
[339788186,1727987489042,-751.5,0.00033698,120]
[339788187,1727987489054,-500.0,0.00033698,120]
[339788188,1727987489063,-1135.51,0.00033698,120]
[339788189,1727987489075,-26307.75,0.00033698,120]
[339788190,1727987489084,-1359.32,0.00033698,120]
[339788191,1727987489093,-2373.28,0.00033698,120]
[339788192,1727987489103,-920.13,0.00033698,120]
[339788193,1727987489113,-723.9,0.00033698,120]
[339788194,1727987489122,-500.0,0.00033698,120]
[339788195,1727987489131,-683.05,0.00033698,120]
[339788196,1727987489141,-500.0,0.00033698,120]
[339788197,1727987489151,-500.0,0.00033698,120]
[339788198,1727987489160,-1328.33,0.00033698,120]
[339788199,1727987489169,-500.0,0.00033698,120]
[339788200,1727987489178,-500.0,0.00033698,120]
[339788201,1727987489188,-1718.99,0.00033698,120]
[339788202,1727987489198,-500.0,0.00033698,120]
[339788203,1727987489207,-293.48949428,0.00033698,120]
[339788204,1727987489218,-2515.59,0.00033698,120]
[339788205,1727987489227,-151.0,0.00033698,7]
[339788206,1727987489237,-953.41,0.00033698,120]
[339788207,1727987489246,-2264.01,0.00033698,120]
[339788208,1727987489255,-876.22,0.00033698,120]
[339788209,1727987489264,-1281.35,0.00033698,120]
[339788210,1727987489273,-2588.02,0.00033698,120]
[339788211,1727987489282,-1057.1,0.00033698,120]
[339788212,1727987489291,-500.0,0.00033698,120]
[339788213,1727987489300,-1543.66,0.00033698,120]
[339788214,1727987489310,-567.28,0.00033698,120]
[339788215,1727987489319,-1451.722291,0.00033698,7]
[339788216,1727987489328,-1173.73,0.00033698,120]
[339788217,1727987489337,-500.0,0.00033698,120]
[339788218,1727987489347,-1451.722288,0.00033698,7]
[339788219,1727987489356,-622.45,0.00033698,120]
[339788220,1727987489365,-831.03,0.00033698,120]
[339788221,1727987489374,-574.46,0.00033698,120]
[339788222,1727987489384,-500.0,0.00033698,120]
[339788223,1727987489393,-151.0,0.00033698,7]
[339788224,1727987489404,-999.57,0.00033698,120]
[339788225,1727987489414,-605.72,0.00033698,120]
[339788226,1727987489423,-500.0,0.00033698,120]
[339788227,1727987489432,-656.14,0.00033698,24]
[339788228,1727987489442,-1059.55,0.00033698,120]
[339788229,1727987489451,-2557.98,0.00033698,120]
[339788230,1727987489461,-500.0,0.00033698,120]
[339788231,1727987489470,-1114.36,0.00033698,120]
[339788232,1727987489479,-985.85,0.00033698,120]
[339788233,1727987489489,-2619.08,0.00033698,120]
[339788234,1727987489498,-2196.8,0.00033698,120]
[339788235,1727987489508,-623.45,0.00033698,120]
[339788236,1727987489518,-548.67331343,0.00033698,120]
[339788237,1727987489529,-1368.57,0.00033698,120]
[339788238,1727987489538,-534.46,0.00033698,120]
[339788239,1727987489549,-1760.97,0.00033698,120]
[339788240,1727987489558,-4833.89,0.00033698,120]
[339788241,1727987489568,-1036.03,0.00033698,120]
[339788242,1727987489577,-613.95,0.00033698,120]
[339788243,1727987489587,-1437.23,0.00033698,120]
[339788244,1727987489596,-1295.57,0.00033698,120]
[339788245,1727987489605,-581.64,0.00033698,120]
[339788246,1727987489614,-1100.59,0.00033698,120]
[339788247,1727987489624,-500.0,0.00033698,120]
[339788248,1727987489633,-1584.05,0.00033698,120]
[339788249,1727987489643,-500.0,0.00033698,120]
[339788250,1727987489652,-1739.53,0.00033698,120]
[339788251,1727987489662,-780.59,0.00033698,120]
[339788252,1727987489671,-500.0,0.00033698,120]
[339788253,1727987489680,-10179.37,0.00033698,120]
[339788254,1727987489689,-1002.66,0.00033698,120]
[339788255,1727987489698,-567.89,0.00033698,120]
[339788256,1727987489707,-189.943642,0.00033698,7]
[339788257,1727987489716,-859.91,0.00033698,120]
[339788258,1727987489726,-504.47,0.00033698,120]
[339788259,1727987489735,-151.0,0.00033698,7]
[339788260,1727987489744,-8270.07,0.00033698,21]
[339788261,1727987489754,-669.41,0.00033698,120]
[339788262,1727987489763,-4586.08,0.00033698,120]
[339788263,1727987489772,-1138.44,0.00033698,120]
[339788264,1727987489782,-631.12,0.00033698,120]
[339788265,1727987489791,-2304.02,0.00033698,120]
[339788266,1727987489801,-189.943646,0.00033698,7]
[339788267,1727987489810,-811.67,0.00033698,120]
[339788268,1727987489819,-500.0,0.00033698,120]
[339788269,1727987489829,-536.29,0.00033698,120]
[339788270,1727987489840,-994.04,0.00033698,120]
[339788271,1727987489852,-500.0,0.00033698,120]
[339788272,1727987489861,-1256.67,0.00033698,120]
[339788273,1727987489870,-1487.03,0.00033698,120]
[339788274,1727987489881,-500.0,0.00033698,120]
[339788275,1727987489890,-151.0,0.00033702,7]
[339788276,1727987489899,-151.0,0.00033702,7]
[339788277,1727987489910,-151.0,0.00033702,7]
[339788278,1727987489919,-151.0,0.00033702,7]
[339788279,1727987489931,-6791.8561084,0.00033716,2]
[339788280,1727987489940,-152.0,0.00033762,3]
[339788281,1727987489951,-152.0,0.00033762,3]
[339788282,1727987489961,-150.0,0.00033842,120]
[339788283,1727987489972,-500.0,0.00033972,120]
[339788284,1727987489982,-151.0,0.00033972,7]
[339788285,1727987489992,-151.0,0.00033972,7]
[339788286,1727987490002,-151.0,0.00033972,7]
[339788287,1727987490012,-151.0,0.00033972,7]
[339788288,1727987490123,-236.946632,0.00033972,7]
[339788289,1727987490237,-151.0,0.00033972,7]
[339788290,1727987490255,-151.0,0.00033972,7]
[339788291,1727987490265,-151.0,0.00033972,7]
[339788292,1727987490274,-151.0,0.00033972,7]
[339788293,1727987490283,-242.666669,0.00033972,7]
[339788294,1727987490293,-242.666669,0.00033972,7]
[339788295,1727987490302,-151.0,0.00033972,7]
[339788296,1727987490312,-151.0,0.00033972,7]
[339788297,1727987490322,-151.0,0.00033972,7]
[339788298,1727987490332,-273.281571,0.00033972,7]
[339788299,1727987490341,-380.037178,0.00033972,7]
[339788300,1727987490351,-380.037178,0.00033972,7]
[339788301,1727987490361,-280.389785,0.00033972,7]
[339788302,1727987490370,-280.389785,0.00033972,7]
[339788303,1727987490380,-305.552585,0.00033972,7]
[339788304,1727987490389,-305.552585,0.00033972,7]
[339788305,1727987490398,-3436.547188,0.00033972,7]
[339788306,1727987490409,-3436.547188,0.00033972,7]
[339788307,1727987490419,-272.92873,0.00033972,7]
[339788308,1727987490429,-151.0,0.00033972,7]
[339788309,1727987490439,-272.92873,0.00033972,7]
[339788310,1727987490449,-151.0,0.00033972,7]
[339788311,1727987490459,-151.0,0.00033972,7]
[339788312,1727987490468,-151.843722,0.00033972,7]
[339788313,1727987490479,-151.0,0.00033972,7]
[339788314,1727987490488,-189.95513667,0.00033972,7]
[339788315,1727987490497,-151.0,0.00033972,7]
[339788316,1727987490507,-1830.04,0.00033972,120]
[339788317,1727987490515,-500.0,0.00033972,120]
[339788318,1727987490526,-151.0,0.00033972,7]
[339788319,1727987490535,-731.74,0.00033972,120]
[339788320,1727987490545,-1465.14,0.00033972,120]
[339788321,1727987490554,-500.0,0.00033972,120]
[339788322,1727987490564,-150.0,0.00033972,120]
[339788323,1727987490573,-500.0,0.00033972,120]
[339788324,1727987490583,-500.0,0.00033972,120]
[339788325,1727987490593,-500.0,0.00033972,120]
[339788326,1727987490604,-1375.31,0.00033972,120]
[339788327,1727987490613,-203.3006512,0.00033972,120]
[339788328,1727987490623,-668.57,0.00033972,120]
[339788329,1727987490632,-500.0,0.00033972,120]
[339788330,1727987490642,-500.0,0.00033972,120]
[339788331,1727987490653,-500.0,0.00033972,120]
[339788332,1727987490663,-1062.68,0.00033972,120]
[339788333,1727987490672,-500.0,0.00033972,120]
[339788334,1727987490683,-1108.65,0.00033972,120]
[339788335,1727987490692,-1917.75,0.00033972,120]
[339788336,1727987490703,-1239.66,0.00033972,120]
[339788337,1727987490714,-162.493315,0.00033972,7]
[339788338,1727987490725,-749.5,0.00033972,120]
[339788339,1727987490735,-162.493315,0.00033972,7]
[339788340,1727987490744,-1219.3,0.00033972,120]
[339788341,1727987490754,-1706.35,0.00033972,120]
[339788342,1727987490764,-500.0,0.00033972,120]
[339788343,1727987490773,-1816.28,0.00033972,120]
[339788344,1727987490782,-172.725409,0.00033972,7]
[339788345,1727987490792,-608.59,0.00033972,120]
[339788346,1727987490801,-172.725409,0.00033972,7]
[339788347,1727987490811,-500.0,0.00033972,120]
[339788348,1727987490820,-500.0,0.00033972,120]
[339788349,1727987490830,-500.0,0.00033972,120]
[339788350,1727987490840,-500.0,0.00033972,120]
[339788351,1727987490852,-688.2,0.00033972,120]
[339788352,1727987490862,-818.32,0.00033972,120]
[339788353,1727987490871,-500.0,0.00033972,120]
[339788354,1727987490881,-1382.2645,0.00033972,7]
[339788355,1727987490890,-212.219392,0.00033972,7]
[339788356,1727987490900,-500.0,0.00033972,120]
[339788357,1727987490909,-2173.75,0.00033972,120]
[339788358,1727987490919,-212.219392,0.00033972,7]
[339788359,1727987490929,-721.06,0.00033972,120]
[339788360,1727987490939,-2649.5,0.00033972,120]
[339788361,1727987490949,-500.0,0.00033972,120]
[339788362,1727987490959,-500.0,0.00033972,120]
[339788363,1727987490968,-500.0,0.00033972,120]
[339788364,1727987490978,-500.0,0.00033972,120]
[339788365,1727987490987,-500.0,0.00033972,120]
[339788366,1727987490997,-500.0,0.00033972,120]
[339788367,1727987491007,-952.32,0.00033972,120]
[339788368,1727987491016,-500.0,0.00033972,15]
[339788369,1727987491026,-508.75,0.00033972,120]
[339788370,1727987491036,-382.51797965,0.00033972,120]
[339788371,1727987491045,-500.0,0.00033972,120]
[339788372,1727987491055,-2782.16,0.00033972,120]
[339788373,1727987491064,-500.0,0.00033972,120]
[339788374,1727987491074,-500.0,0.00033972,120]
[339788375,1727987491083,-500.0,0.00033972,120]
[339788376,1727987491093,-500.0,0.00033972,120]
[339788377,1727987491102,-799.66,0.00033972,120]
[339788378,1727987491112,-500.0,0.00033972,120]
[339788379,1727987491122,-528.54,0.00033972,120]
[339788380,1727987491132,-500.0,0.00033972,120]
[339788381,1727987491141,-500.0,0.00033972,120]
[339788382,1727987491151,-1116.48,0.00033972,120]
[339788383,1727987491161,-500.0,0.00033972,120]
[339788384,1727987491171,-500.0,0.00033972,120]
[339788385,1727987491180,-500.0,0.00033972,120]
[339788386,1727987491189,-500.0,0.00033972,120]
[339788387,1727987491199,-500.0,0.00033972,120]
[339788388,1727987491208,-667.6,0.00033972,120]
[339788389,1727987491218,-516.86,0.00033972,120]
[339788390,1727987491228,-500.0,0.00033972,120]
[339788391,1727987491240,-577.36,0.00033972,120]
[339788392,1727987491249,-448.340669,0.00033972,7]
[339788393,1727987491259,-151.0,0.00033972,7]
[339788394,1727987491268,-500.0,0.00033972,120]
[339788395,1727987491278,-448.340669,0.00033972,7]
[339788396,1727987491288,-2275.0,0.00033972,120]
[339788397,1727987491298,-1181.76,0.00033972,120]
[339788398,1727987491307,-1059.01,0.00033972,120]
[339788399,1727987491316,-500.0,0.00033972,120]
[339788400,1727987491325,-678.32,0.00033972,120]
[339788401,1727987491335,-316.28097,0.00033972,7]
[339788402,1727987491344,-500.0,0.00033972,120]
[339788403,1727987491353,-500.0,0.00033972,120]
[339788404,1727987491363,-908.96,0.00033972,120]
[339788405,1727987491372,-806.47,0.00033972,120]
[339788406,1727987491381,-316.28097,0.00033972,7]
[339788407,1727987491390,-500.0,0.00033972,120]
[339788408,1727987491399,-181.278868,0.00033972,7]
[339788409,1727987491410,-1850.2,0.00033972,120]
[339788410,1727987491419,-500.0,0.00033972,120]
[339788411,1727987491428,-181.278868,0.00033972,7]
[339788412,1727987491438,-500.0,0.00033972,120]
[339788413,1727987491447,-500.0,0.00033972,120]
[339788414,1727987491456,-500.0,0.00033972,120]
[339788415,1727987491465,-532.65,0.00033972,120]
[339788416,1727987491475,-500.0,0.00033972,120]
[339788417,1727987491484,-500.0,0.00033972,120]
[339788418,1727987491493,-500.0,0.00033972,120]
[339788419,1727987491502,-500.0,0.00033972,120]
[339788420,1727987491511,-951.98,0.00033972,120]
[339788421,1727987491520,-3113.1,0.00033972,120]
[339788422,1727987491531,-500.0,0.00033972,120]
[339788423,1727987491541,-952.18,0.00033972,120]
[339788424,1727987491551,-1578.27,0.00033972,120]
[339788425,1727987491561,-799.85,0.00033972,120]
[339788426,1727987491572,-500.0,0.00033972,120]
[339788427,1727987491582,-708.6,0.00033972,120]
[339788428,1727987491596,-584.82,0.00033972,120]
[339788429,1727987491606,-500.0,0.00033972,120]
[339788430,1727987491617,-560.83,0.00033972,120]
[339788431,1727987491628,-500.0,0.00033972,120]
[339788432,1727987491638,-610.78,0.00033972,120]
[339788433,1727987491648,-1249.01,0.00033972,120]
[339788434,1727987491666,-500.0,0.00033972,120]
[339788435,1727987491677,-500.0,0.00033972,120]
[339788436,1727987491687,-500.0,0.00033972,120]
[339788437,1727987491698,-151.0,0.00033972,7]
[339788438,1727987491708,-1225.26,0.00033972,120]
[339788439,1727987491717,-500.0,0.00033972,120]
[339788440,1727987491727,-911.79,0.00033972,120]
[339788441,1727987491736,-817.82,0.00033972,120]
[339788442,1727987491746,-500.0,0.00033972,120]
[339788443,1727987491756,-500.0,0.00033972,120]
[339788444,1727987491766,-500.0,0.00033972,120]
[339788445,1727987491776,-517.59,0.00033972,120]
[339788446,1727987491785,-1292.49,0.00033972,7]
[339788447,1727987491795,-500.0,0.00033972,120]
[339788448,1727987491804,-500.0,0.00033972,120]
[339788449,1727987491813,-500.0,0.00033972,120]
[339788450,1727987491823,-500.0,0.00033972,120]
[339788451,1727987491832,-762.72,0.00033972,120]
[339788452,1727987491843,-1396.71,0.00033972,120]
[339788453,1727987491857,-1184.87,0.00033972,120]
[339788454,1727987491868,-1701.57,0.00033972,120]
[339788455,1727987491878,-714.2,0.00033972,120]
[339788456,1727987491890,-500.0,0.00033972,120]
[339788457,1727987491900,-500.0,0.00033972,120]
[339788458,1727987491911,-500.0,0.00033972,120]
[339788459,1727987491921,-676.51,0.00033972,120]
[339788460,1727987491932,-1713.42,0.00033972,120]
[339788461,1727987491941,-543.4,0.00033972,120]
[339788462,1727987491953,-615.69,0.00033972,120]
[339788463,1727987491964,-675.57,0.00033972,120]
[339788464,1727987491976,-822.0,0.00033972,120]
[339788465,1727987491985,-500.0,0.00033972,120]
[339788466,1727987491994,-781.4,0.00033972,120]
[339788467,1727987492005,-500.0,0.00033972,120]
[339788468,1727987492014,-747.69,0.00033972,120]
[339788469,1727987492023,-500.0,0.00033972,120]
[339788470,1727987492033,-500.0,0.00033972,120]
[339788471,1727987492042,-617.77,0.00033972,120]
[339788472,1727987492052,-911.34,0.00033972,120]
[339788473,1727987492061,-500.0,0.00033972,120]
[339788474,1727987492071,-500.0,0.00033972,120]
[339788475,1727987492081,-226.595,0.00033972,7]
[339788476,1727987492091,-500.0,0.00033972,120]
[339788477,1727987492102,-500.0,0.00033972,120]
[339788478,1727987492112,-1099.61,0.00033972,120]
[339788479,1727987492122,-500.0,0.00033972,120]
[339788480,1727987492131,-500.0,0.00033972,120]
[339788481,1727987492141,-500.0,0.00033972,120]
[339788482,1727987492150,-1245.73,0.00033972,120]
[339788483,1727987492166,-605.0,0.00033972,120]
[339788484,1727987492176,-570.35,0.00033972,120]
[339788485,1727987492186,-614.52,0.00033972,120]
[339788486,1727987492196,-806.75,0.00033972,120]
[339788487,1727987492205,-761.4,0.00033972,120]
[339788488,1727987492215,-500.0,0.00033972,120]
[339788489,1727987492224,-500.0,0.00033972,120]
[339788490,1727987492233,-500.0,0.00033972,120]
[339788491,1727987492243,-290.00623739,0.00033972,120]
[339788492,1727987492253,-1016.56,0.00033972,120]
[339788493,1727987492262,-500.0,0.00033972,120]
[339788494,1727987492272,-500.0,0.00033972,120]
[339788495,1727987492281,-500.0,0.00033972,120]
[339788496,1727987492290,-908.19,0.00033972,120]
[339788497,1727987492300,-500.0,0.00033972,120]
[339788498,1727987492309,-500.0,0.00033972,120]
[339788499,1727987492318,-500.0,0.00033972,120]
[339788500,1727987492327,-650.02,0.00033972,120]
[339788501,1727987492337,-2907.54,0.00033972,120]
[339788502,1727987492346,-1955.84,0.00033972,120]
[339788503,1727987492356,-666.23,0.00033972,120]
[339788504,1727987492365,-500.0,0.00033972,5]
[339788505,1727987492374,-500.0,0.00033972,120]
[339788506,1727987492384,-1768.990651,0.00033972,7]
[339788507,1727987492393,-619.0,0.00033972,120]
[339788508,1727987492706,-1476.07,0.00033972,120]
[339788509,1727987492716,-1768.990651,0.00033972,7]
[339788510,1727987492726,-500.0,0.00033972,120]
[339788511,1727987492735,-200.0,0.00033972,7]
[339788512,1727987492745,-580.92,0.00033972,120]
[339788513,1727987492755,-664.13,0.00033972,120]
[339788514,1727987492764,-559.23,0.00033972,120]
[339788515,1727987492773,-500.0,0.00033972,120]
[339788516,1727987492782,-682.12,0.00033972,120]
[339788517,1727987492792,-662.07,0.00033972,120]
[339788518,1727987492801,-500.0,0.00033972,120]
[339788519,1727987492810,-500.0,0.00033972,120]
[339788520,1727987492819,-526.87153912,0.00033972,120]
[339788521,1727987492828,-500.0,0.00033972,120]
[339788522,1727987492838,-1017.64,0.00033972,120]
[339788523,1727987492851,-1843.32,0.00033972,120]
[339788524,1727987492860,-929.85,0.00033972,120]
[339788525,1727987492869,-500.0,0.00033972,120]
[339788526,1727987492878,-903.96,0.00033972,120]
[339788527,1727987492889,-500.0,0.00033972,120]
[339788528,1727987492898,-1244.9,0.00033972,120]
[339788529,1727987492909,-2059.5,0.00033972,120]
[339788530,1727987492918,-1208.85,0.00033972,120]
[339788531,1727987492930,-500.0,0.00033972,120]
[339788532,1727987492939,-1392.18,0.00033972,120]
[339788533,1727987492949,-500.0,0.00033972,120]
[339788534,1727987492958,-1754.22,0.00033972,120]
[339788535,1727987492968,-500.0,0.00033972,120]
[339788536,1727987492976,-3096.26,0.00033972,120]
[339788537,1727987492986,-838.34,0.00033972,120]
[339788538,1727987492995,-500.0,0.00033972,120]
[339788539,1727987493004,-767.37,0.00033972,120]
[339788540,1727987493013,-500.0,0.00033972,120]
[339788541,1727987493023,-1262.93,0.00033972,120]
[339788542,1727987493032,-801.012603,0.00033972,7]
[339788543,1727987493041,-500.0,0.00033972,120]
[339788544,1727987493051,-900.49,0.00033972,120]
[339788545,1727987493060,-801.012603,0.00033972,7]
[339788546,1727987493070,-871.88,0.00033972,120]
[339788547,1727987493079,-546.33,0.00033972,120]
[339788548,1727987493089,-1915.72,0.00033972,120]
[339788549,1727987493099,-500.0,0.00033972,120]
[339788550,1727987493109,-542.05,0.00033972,120]
[339788551,1727987493119,-500.0,0.00033972,120]
[339788552,1727987493128,-1246.58,0.00033972,120]
[339788553,1727987493138,-755.2,0.00033972,120]
[339788554,1727987493148,-500.0,0.00033972,120]
[339788555,1727987493159,-515.39,0.00033972,120]
[339788556,1727987493169,-1449.61,0.00033972,120]
[339788557,1727987493179,-500.0,0.00033972,120]
[339788558,1727987493189,-615.97,0.00033972,120]
[339788559,1727987493199,-500.0,0.00033972,120]
[339788560,1727987493208,-500.0,0.00033972,120]
[339788561,1727987493218,-500.0,0.00033972,120]
[339788562,1727987493228,-828.98,0.00033972,120]
[339788563,1727987493238,-522.48,0.00033972,120]
[339788564,1727987493247,-500.0,0.00033972,120]
[339788565,1727987493257,-452.93379668,0.00033972,120]
[339788566,1727987493266,-769.93,0.00033972,120]
[339788567,1727987493276,-500.0,0.00033972,120]
[339788568,1727987493285,-1535.42,0.00033972,120]
[339788569,1727987493295,-500.0,0.00033972,120]
[339788570,1727987493304,-692.01,0.00033972,120]
[339788571,1727987493314,-500.0,0.00033972,120]
[339788572,1727987493324,-500.0,0.00033972,120]
[339788573,1727987493334,-500.0,0.00033972,120]
[339788574,1727987493344,-617.57,0.00033972,120]
[339788575,1727987493354,-500.0,0.00033972,120]
[339788576,1727987493364,-500.0,0.00033972,120]
[339788577,1727987493375,-1322.47,0.00033972,120]
[339788578,1727987493385,-775.222596,0.00033972,7]
[339788579,1727987493395,-3041.51,0.00033972,120]
[339788580,1727987493404,-678.3,0.00033972,120]
[339788581,1727987493414,-1088.33,0.00033972,120]
[339788582,1727987493425,-399.16194092,0.00033972,120]
[339788583,1727987493435,-685.28,0.00033972,120]
[339788584,1727987493444,-775.222596,0.00033972,7]
[339788585,1727987493454,-809.97,0.00033972,120]
[339788586,1727987493464,-617.35,0.00033972,120]
[339788587,1727987493473,-500.0,0.00033972,120]
[339788588,1727987493483,-500.0,0.00033972,120]
[339788589,1727987493493,-500.0,0.00033972,120]
[339788590,1727987493502,-504.49,0.00033972,120]
[339788591,1727987493512,-1000.0,0.00033972,120]
[339788592,1727987493521,-2582.55,0.00033972,14]
[339788593,1727987493531,-821.22,0.00033972,120]
[339788594,1727987493540,-2036.76,0.00033972,2]
[339788595,1727987493550,-500.0,0.00033972,120]
[339788596,1727987493559,-500.0,0.00033972,120]
[339788597,1727987493569,-752.83,0.00033972,120]
[339788598,1727987493578,-1192.92,0.00033972,120]
[339788599,1727987493587,-500.0,0.00033972,120]
[339788600,1727987493597,-500.0,0.00033972,120]
[339788601,1727987493607,-10000.0,0.00033972,7]